[Event "Late-Titled-Tuesday-Blitz-February-06-2024"]
[Site "Chess.com"]
[Date "2024.02.06"]
[Round "10"]
[White "BeardedNM"]
[Black "rcmz"]
[Result "1-0"]
[WhiteElo "2236"]
[BlackElo "2123"]
[TimeControl "180+1"]
[EndTime "15:55:42 PST"]
[Termination "BeardedNM won on time"]

1. e4 {[%clk 0:02:55.2]} 1... Nf6 {[%clk 0:02:58.5]} 2. e5 {[%clk 0:02:55.3]}
2... Nd5 {[%clk 0:02:58.4]} 3. d4 {[%clk 0:02:54.3]} 3... d6 {[%clk 0:02:57.7]}
4. Nf3 {[%clk 0:02:54.6]} 4... Bf5 {[%clk 0:02:55.8]} 5. Be2 {[%clk 0:02:51.6]}
5... Nc6 {[%clk 0:02:53.2]} 6. O-O {[%clk 0:02:46.6]} 6... e6 {[%clk 0:02:36.3]}
7. c4 {[%clk 0:02:22]} 7... Nb6 {[%clk 0:02:34.6]} 8. exd6 {[%clk 0:02:16.8]}
8... cxd6 {[%clk 0:02:31]} 9. d5 {[%clk 0:02:07.9]} 9... Ne5 {[%clk 0:02:22.3]}
10. Nxe5 {[%clk 0:01:57.9]} 10... dxe5 {[%clk 0:02:21.3]} 11. Nc3 {[%clk
0:01:37.2]} 11... exd5 {[%clk 0:02:04.7]} 12. cxd5 {[%clk 0:01:32.5]} 12... Bd6
{[%clk 0:02:02.3]} 13. Bb5+ {[%clk 0:01:24]} 13... Bd7 {[%clk 0:02:01.2]} 14.
Qg4 {[%clk 0:01:20.6]} 14... O-O {[%clk 0:01:54]} 15. Bxd7 {[%clk 0:01:19.7]}
15... Qxd7 {[%clk 0:01:53.4]} 16. Qxd7 {[%clk 0:01:14]} 16... Nxd7 {[%clk
0:01:52]} 17. Be3 {[%clk 0:00:58.2]} 17... a6 {[%clk 0:01:41.7]} 18. Ne4 {[%clk
0:00:55.3]} 18... Be7 {[%clk 0:01:33.9]} 19. d6 {[%clk 0:00:51.2]} 19... Bd8
{[%clk 0:01:31.4]} 20. g4 {[%clk 0:00:40.8]} 20... h6 {[%clk 0:01:17]} 21. Rac1
{[%clk 0:00:28.3]} 21... f5 {[%clk 0:01:05.9]} 22. gxf5 {[%clk 0:00:29.2]} 22...
Rxf5 {[%clk 0:01:05]} 23. Rc4 {[%clk 0:00:23.4]} 23... Nf6 {[%clk 0:00:53.8]}
24. Nc5 {[%clk 0:00:17.7]} 24... b5 {[%clk 0:00:45.6]} 25. Rc2 {[%clk
0:00:14.5]} 25... Bb6 {[%clk 0:00:41.2]} 26. Ne6 {[%clk 0:00:12.5]} 26... Bxe3
{[%clk 0:00:38]} 27. fxe3 {[%clk 0:00:13.4]} 27... Rxf1+ {[%clk 0:00:37.4]} 28.
Kxf1 {[%clk 0:00:14.3]} 28... Kf7 {[%clk 0:00:35.9]} 29. Nc7 {[%clk 0:00:12.9]}
29... Rd8 {[%clk 0:00:34.5]} 30. Rd2 {[%clk 0:00:13.1]} 30... Ne4 {[%clk
0:00:33.1]} 31. Rd5 {[%clk 0:00:13.2]} 31... Rxd6 {[%clk 0:00:29.3]} 32. Rxd6
{[%clk 0:00:12.4]} 32... Nxd6 {[%clk 0:00:29]} 33. Nxa6 {[%clk 0:00:13.3]} 33...
Ke6 {[%clk 0:00:27.3]} 34. Ke2 {[%clk 0:00:13.4]} 34... Kd5 {[%clk 0:00:26.8]}
35. Kd3 {[%clk 0:00:13.5]} 35... e4+ {[%clk 0:00:26.5]} 36. Kc3 {[%clk
0:00:13.7]} 36... Nc4 {[%clk 0:00:25.2]} 37. Kb4 {[%clk 0:00:12.5]} 37... Nxb2
{[%clk 0:00:24]} 38. Kxb5 {[%clk 0:00:13]} 38... Nd1 {[%clk 0:00:19.8]} 39. Nb4+
{[%clk 0:00:12.4]} 39... Kd6 {[%clk 0:00:17.6]} 40. Nc2 {[%clk 0:00:12.4]} 40...
Nc3+ {[%clk 0:00:16.9]} 41. Kc4 {[%clk 0:00:10]} 41... Nxa2 {[%clk 0:00:16.8]}
42. Kd4 {[%clk 0:00:10.5]} 42... Nc1 {[%clk 0:00:14.5]} 43. Kxe4 {[%clk
0:00:10.3]} 43... Ke6 {[%clk 0:00:14.6]} 44. Kf4 {[%clk 0:00:10.1]} 44... Nd3+
{[%clk 0:00:13.6]} 45. Ke4 {[%clk 0:00:10.1]} 45... Nf2+ {[%clk 0:00:13.1]} 46.
Kf3 {[%clk 0:00:10.4]} 46... Nd3 {[%clk 0:00:12.3]} 47. Nd4+ {[%clk 0:00:10.4]}
47... Kf6 {[%clk 0:00:11.9]} 48. e4 {[%clk 0:00:09.9]} 48... Ne5+ {[%clk
0:00:11.9]} 49. Kf4 {[%clk 0:00:09.9]} 49... g5+ {[%clk 0:00:11.8]} 50. Ke3
{[%clk 0:00:09.5]} 50... Ng4+ {[%clk 0:00:11.4]} 51. Kd3 {[%clk 0:00:09]} 51...
Nxh2 {[%clk 0:00:11.3]} 52. Nc6 {[%clk 0:00:09]} 52... Nf3 {[%clk 0:00:10.4]}
53. Ke3 {[%clk 0:00:08.8]} 53... Ne5 {[%clk 0:00:09.7]} 54. Nd4 {[%clk
0:00:08.6]} 54... h5 {[%clk 0:00:08.6]} 55. Ne2 {[%clk 0:00:08.8]} 55... h4
{[%clk 0:00:07.6]} 56. Kf2 {[%clk 0:00:08.1]} 56... g4 {[%clk 0:00:06.7]} 57.
Nf4 {[%clk 0:00:07.9]} 57... Nc4 {[%clk 0:00:04.6]} 58. Ng2 {[%clk 0:00:07.3]}
58... Kg5 {[%clk 0:00:04]} 59. Ke2 {[%clk 0:00:05.8]} 59... h3 {[%clk
0:00:03.3]} 60. Ne1 {[%clk 0:00:06.1]} 60... g3 {[%clk 0:00:01.9]} 61. Kf3
{[%clk 0:00:05.7]} 1-0

[Event "Late-Titled-Tuesday-Blitz-February-06-2024"]
[Site "Chess.com"]
[Date "2024.02.06"]
[Round "10"]
[White "N_Mullodzhanov"]
[Black "only_strong_moves"]
[Result "1/2-1/2"]
[WhiteElo "2483"]
[BlackElo "2645"]
[TimeControl "180+1"]
[EndTime "15:55:45 PST"]
[Termination "Game drawn by repetition"]

1. e4 {[%clk 0:03:00.9]} 1... e5 {[%clk 0:03:00.1]} 2. Nf3 {[%clk 0:03:00.7]}
2... Nc6 {[%clk 0:03:00.6]} 3. Bc4 {[%clk 0:02:59.8]} 3... Nf6 {[%clk
0:03:00.7]} 4. O-O {[%clk 0:02:58.2]} 4... Nxe4 {[%clk 0:02:56.7]} 5. d4 {[%clk
0:02:58.3]} 5... d5 {[%clk 0:02:54.1]} 6. Bb5 {[%clk 0:02:58.5]} 6... Be7 {[%clk
0:02:50.2]} 7. Nxe5 {[%clk 0:02:57.7]} 7... O-O {[%clk 0:02:49.3]} 8. Bxc6
{[%clk 0:02:53.9]} 8... bxc6 {[%clk 0:02:50.2]} 9. Nxc6 {[%clk 0:02:54.3]} 9...
Qd6 {[%clk 0:02:50.2]} 10. Nxe7+ {[%clk 0:02:53.6]} 10... Qxe7 {[%clk
0:02:51.1]} 11. Nd2 {[%clk 0:02:52.1]} 11... Bf5 {[%clk 0:02:44]} 12. Re1 {[%clk
0:02:48.6]} 12... Qf6 {[%clk 0:02:42.4]} 13. Nf3 {[%clk 0:02:42.4]} 13... Rfe8
{[%clk 0:02:39.3]} 14. Bf4 {[%clk 0:02:40.9]} 14... c5 {[%clk 0:02:39.3]} 15.
Be5 {[%clk 0:02:39]} 15... Qh6 {[%clk 0:02:31.9]} 16. Qc1 {[%clk 0:02:34.5]}
16... Qc6 {[%clk 0:02:24.5]} 17. c3 {[%clk 0:02:30.3]} 17... f6 {[%clk
0:02:18.5]} 18. Bf4 {[%clk 0:02:30]} 18... c4 {[%clk 0:02:12.5]} 19. Nh4 {[%clk
0:02:25.5]} 19... Bd7 {[%clk 0:02:10.3]} 20. f3 {[%clk 0:02:25.6]} 20... Nd6
{[%clk 0:02:05.6]} 21. Bxd6 {[%clk 0:02:25.6]} 21... Qxd6 {[%clk 0:02:05.5]} 22.
f4 {[%clk 0:02:26]} 22... Re4 {[%clk 0:01:53.9]} 23. Rxe4 {[%clk 0:02:25.1]}
23... dxe4 {[%clk 0:01:54.8]} 24. Qe3 {[%clk 0:02:22]} 24... Re8 {[%clk
0:01:55.2]} 25. Rf1 {[%clk 0:02:14]} 25... Qd5 {[%clk 0:01:53.9]} 26. f5 {[%clk
0:02:07.5]} 26... Rb8 {[%clk 0:01:50.6]} 27. Rf2 {[%clk 0:02:07]} 27... a5
{[%clk 0:01:48.1]} 28. Re2 {[%clk 0:02:06.6]} 28... Bxf5 {[%clk 0:01:46.9]} 29.
Qf4 {[%clk 0:02:05.8]} 29... Rb5 {[%clk 0:01:42]} 30. a4 {[%clk 0:02:02.1]}
30... g5 {[%clk 0:01:40.2]} 31. Qf2 {[%clk 0:01:44.3]} 31... gxh4 {[%clk
0:01:36.2]} 32. axb5 {[%clk 0:01:43.9]} 32... Qxb5 {[%clk 0:01:37.1]} 33. Qxh4
{[%clk 0:01:43.3]} 33... Kf7 {[%clk 0:01:33.1]} 34. g4 {[%clk 0:01:40.9]} 34...
Bg6 {[%clk 0:01:32.4]} 35. Qg3 {[%clk 0:01:41]} 35... Qa4 {[%clk 0:01:27.9]} 36.
Qc7+ {[%clk 0:01:39.9]} 36... Kg8 {[%clk 0:01:27.7]} 37. Kf2 {[%clk 0:01:27.8]}
37... Qd1 {[%clk 0:01:27.4]} 38. Qxa5 {[%clk 0:01:25.3]} 38... Qh1 {[%clk
0:01:26.9]} 39. Qd8+ {[%clk 0:01:19.4]} 39... Kg7 {[%clk 0:01:24.9]} 40. Qc7+
{[%clk 0:01:14.1]} 40... Bf7 {[%clk 0:01:19.1]} 41. Qg3 {[%clk 0:01:13.6]} 41...
Bg6 {[%clk 0:01:09.8]} 42. d5 {[%clk 0:01:12.4]} 42... Qd1 {[%clk 0:01:09.1]}
43. d6 {[%clk 0:01:10.3]} 43... Kf7 {[%clk 0:01:04.6]} 44. h4 {[%clk 0:01:04.4]}
44... h5 {[%clk 0:01:04.2]} 45. g5 {[%clk 0:01:00.8]} 45... f5 {[%clk
0:00:54.3]} 46. Qe5 {[%clk 0:01:00.1]} 46... Kg8 {[%clk 0:00:37.3]} 47. Qf6
{[%clk 0:00:56.7]} 47... Be8 {[%clk 0:00:29.2]} 48. Qe6+ {[%clk 0:00:54.3]}
48... Bf7 {[%clk 0:00:28.7]} 49. Qc8+ {[%clk 0:00:54.4]} 49... Kg7 {[%clk
0:00:28.5]} 50. d7 {[%clk 0:00:54.6]} 50... f4 {[%clk 0:00:28]} 51. d8=Q {[%clk
0:00:39]} 51... e3+ {[%clk 0:00:28.2]} 52. Rxe3 {[%clk 0:00:39.3]} 52... fxe3+
{[%clk 0:00:29.1]} 53. Kxe3 {[%clk 0:00:39.9]} 53... Qg1+ {[%clk 0:00:28.6]} 54.
Ke4 {[%clk 0:00:34.2]} 54... Qg2+ {[%clk 0:00:20.7]} 55. Kd4 {[%clk 0:00:31.8]}
55... Qf2+ {[%clk 0:00:21.1]} 56. Ke4 {[%clk 0:00:20]} 56... Qg2+ {[%clk
0:00:21]} 57. Ke3 {[%clk 0:00:19.6]} 57... Qg1+ {[%clk 0:00:20.8]} 58. Kd2
{[%clk 0:00:19.2]} 58... Qf2+ {[%clk 0:00:20.6]} 59. Kc1 {[%clk 0:00:19.1]}
59... Qg1+ {[%clk 0:00:16.3]} 60. Qd1 {[%clk 0:00:19.1]} 60... Qe3+ {[%clk
0:00:16.8]} 61. Qd2 {[%clk 0:00:14.3]} 61... Qg1+ {[%clk 0:00:16.9]} 62. Qd1
{[%clk 0:00:10]} 62... Qe3+ {[%clk 0:00:17.2]} 63. Qd2 {[%clk 0:00:03.2]} 63...
Qg1+ {[%clk 0:00:16.8]} 64. Qd1 {[%clk 0:00:02.1]} 1/2-1/2

[Event "Late-Titled-Tuesday-Blitz-February-06-2024"]
[Site "Chess.com"]
[Date "2024.02.06"]
[Round "10"]
[White "GMWSO"]
[Black "GadimbayliA"]
[Result "1/2-1/2"]
[WhiteElo "3078"]
[BlackElo "2844"]
[TimeControl "180+1"]
[EndTime "15:55:49 PST"]
[Termination "Game drawn by repetition"]

1. c4 {[%clk 0:02:44.3]} 1... e5 {[%clk 0:02:57.3]} 2. Nc3 {[%clk 0:02:43.3]}
2... Nf6 {[%clk 0:02:57.6]} 3. Nf3 {[%clk 0:02:43.8]} 3... Nc6 {[%clk
0:02:57.9]} 4. e3 {[%clk 0:02:44.1]} 4... Bb4 {[%clk 0:02:55.3]} 5. Qc2 {[%clk
0:02:43]} 5... Bxc3 {[%clk 0:02:55]} 6. Qxc3 {[%clk 0:02:43.9]} 6... Qe7 {[%clk
0:02:55.6]} 7. d4 {[%clk 0:02:44.1]} 7... d6 {[%clk 0:02:53.9]} 8. Be2 {[%clk
0:02:35.7]} 8... O-O {[%clk 0:02:52.2]} 9. d5 {[%clk 0:02:20.7]} 9... Nb8 {[%clk
0:02:42.5]} 10. b4 {[%clk 0:02:19.4]} 10... a5 {[%clk 0:02:42.5]} 11. a3 {[%clk
0:02:14.5]} 11... axb4 {[%clk 0:02:41.3]} 12. axb4 {[%clk 0:02:15.4]} 12... Rxa1
{[%clk 0:02:41.8]} 13. Qxa1 {[%clk 0:02:15.6]} 13... b5 {[%clk 0:02:42.1]} 14.
Nd2 {[%clk 0:02:05.3]} 14... bxc4 {[%clk 0:02:39.9]} 15. Bxc4 {[%clk 0:02:06.2]}
15... Nbd7 {[%clk 0:02:40.2]} 16. e4 {[%clk 0:02:04.3]} 16... Nb6 {[%clk
0:02:40]} 17. Be2 {[%clk 0:02:03.5]} 17... Ne8 {[%clk 0:02:38.2]} 18. O-O {[%clk
0:02:02]} 18... f5 {[%clk 0:02:38.5]} 19. f3 {[%clk 0:02:00.8]} 19... Nf6 {[%clk
0:02:38.9]} 20. Qc3 {[%clk 0:01:53.4]} 20... fxe4 {[%clk 0:02:22.1]} 21. fxe4
{[%clk 0:01:54.3]} 21... Bg4 {[%clk 0:02:22.6]} 22. Bd3 {[%clk 0:01:44.9]} 22...
h6 {[%clk 0:01:56.8]} 23. h3 {[%clk 0:01:37.1]} 23... Bh5 {[%clk 0:01:56.7]} 24.
Nf3 {[%clk 0:01:27.9]} 24... Bg6 {[%clk 0:01:30.5]} 25. Qc2 {[%clk 0:01:16.3]}
25... Nh5 {[%clk 0:01:29.9]} 26. Kh2 {[%clk 0:01:10.1]} 26... Kh7 {[%clk
0:00:57.6]} 27. g3 {[%clk 0:01:08.3]} 27... Nxd5 {[%clk 0:00:49.3]} 28. exd5
{[%clk 0:01:04.2]} 28... e4 {[%clk 0:00:50.2]} 29. Qe2 {[%clk 0:00:59.6]} 29...
Re8 {[%clk 0:00:33.6]} 30. Bb5 {[%clk 0:00:40.8]} 30... exf3 {[%clk 0:00:31.4]}
31. Qxf3 {[%clk 0:00:41.7]} 31... Rb8 {[%clk 0:00:28.6]} 32. Bd3 {[%clk
0:00:35.4]} 32... Nf6 {[%clk 0:00:15.4]} 33. Bxg6+ {[%clk 0:00:31.6]} 33... Kxg6
{[%clk 0:00:16.3]} 34. Qf5+ {[%clk 0:00:24.3]} 34... Kf7 {[%clk 0:00:16.6]} 35.
Bb2 {[%clk 0:00:25]} 35... Rxb4 {[%clk 0:00:06.8]} 36. Bxf6 {[%clk 0:00:24.9]}
36... gxf6 {[%clk 0:00:07.7]} 37. Qh7+ {[%clk 0:00:18.7]} 37... Ke8 {[%clk
0:00:08.1]} 38. Qh8+ {[%clk 0:00:14.2]} 38... Kd7 {[%clk 0:00:07.8]} 39. Rf2
{[%clk 0:00:14.8]} 39... Rb1 {[%clk 0:00:03.9]} 40. Qxf6 {[%clk 0:00:06]} 40...
Qxf6 {[%clk 0:00:04.2]} 41. Rxf6 {[%clk 0:00:06.7]} 41... Rb2+ {[%clk
0:00:05.1]} 42. Kg1 {[%clk 0:00:06.6]} 42... Rd2 {[%clk 0:00:05.5]} 43. Rf5
{[%clk 0:00:06.4]} 43... Ke7 {[%clk 0:00:03.4]} 44. g4 {[%clk 0:00:06.1]} 44...
Re2 {[%clk 0:00:02.6]} 45. Rh5 {[%clk 0:00:05.9]} 45... Rd2 {[%clk 0:00:03.3]}
46. Kf1 {[%clk 0:00:05.6]} 46... Kf7 {[%clk 0:00:03.6]} 47. Ke1 {[%clk
0:00:05.8]} 47... Rd4 {[%clk 0:00:03.5]} 48. Ke2 {[%clk 0:00:06.1]} 48... Kg7
{[%clk 0:00:04.1]} 49. Ke3 {[%clk 0:00:06.6]} 49... Rd1 {[%clk 0:00:04.7]} 50.
Rf5 {[%clk 0:00:06.3]} 50... Re1+ {[%clk 0:00:05]} 51. Kf2 {[%clk 0:00:06.2]}
51... Rd1 {[%clk 0:00:05.3]} 52. Kg3 {[%clk 0:00:06.4]} 52... Rd3+ {[%clk
0:00:05.2]} 53. Kh4 {[%clk 0:00:06.2]} 53... Kg6 {[%clk 0:00:05.5]} 54. Rh5
{[%clk 0:00:06.3]} 54... Kg7 {[%clk 0:00:05.5]} 55. Rf5 {[%clk 0:00:06.5]} 55...
Kg6 {[%clk 0:00:05.9]} 56. Rh5 {[%clk 0:00:06.8]} 56... Kg7 {[%clk 0:00:06.1]}
57. g5 {[%clk 0:00:05.2]} 57... Rd4+ {[%clk 0:00:06.6]} 58. Kg3 {[%clk
0:00:05.4]} 58... hxg5 {[%clk 0:00:07.1]} 59. Rxg5+ {[%clk 0:00:06.3]} 59... Kh6
{[%clk 0:00:07.7]} 60. h4 {[%clk 0:00:06.5]} 60... Rd3+ {[%clk 0:00:08.2]} 61.
Kg4 {[%clk 0:00:06.7]} 61... Rd4+ {[%clk 0:00:08.7]} 62. Kh3 {[%clk 0:00:07.2]}
62... Rd3+ {[%clk 0:00:09.3]} 63. Kg4 {[%clk 0:00:07]} 63... Rd4+ {[%clk
0:00:09.8]} 64. Kg3 {[%clk 0:00:07.4]} 64... Rd3+ {[%clk 0:00:10.3]} 65. Kg2
{[%clk 0:00:07.3]} 65... Rd4 {[%clk 0:00:09.6]} 66. Kh3 {[%clk 0:00:07.5]} 66...
Rd3+ {[%clk 0:00:10]} 67. Kg4 {[%clk 0:00:08]} 1/2-1/2

[Event "Late-Titled-Tuesday-Blitz-February-06-2024"]
[Site "Chess.com"]
[Date "2024.02.06"]
[Round "10"]
[White "Statham_01"]
[Black "delqate"]
[Result "0-1"]
[WhiteElo "2566"]
[BlackElo "2376"]
[TimeControl "180+1"]
[EndTime "15:56:03 PST"]
[Termination "delqate won by checkmate"]

1. e4 {[%clk 0:02:53.4]} 1... d5 {[%clk 0:02:59.3]} 2. exd5 {[%clk 0:02:51.8]}
2... Qxd5 {[%clk 0:03:00.2]} 3. Nf3 {[%clk 0:02:51.3]} 3... Qd8 {[%clk
0:02:59.6]} 4. d4 {[%clk 0:02:48.2]} 4... Nf6 {[%clk 0:02:56.9]} 5. c4 {[%clk
0:02:42.5]} 5... Bg4 {[%clk 0:02:55.3]} 6. Nc3 {[%clk 0:02:41.1]} 6... e6 {[%clk
0:02:54.4]} 7. Be3 {[%clk 0:02:34.1]} 7... Be7 {[%clk 0:02:50.4]} 8. h3 {[%clk
0:02:33.6]} 8... Bh5 {[%clk 0:02:49.5]} 9. Be2 {[%clk 0:02:32.4]} 9... O-O
{[%clk 0:02:48.6]} 10. Ne5 {[%clk 0:02:27.5]} 10... Bxe2 {[%clk 0:02:47]} 11.
Qxe2 {[%clk 0:02:28.4]} 11... Nbd7 {[%clk 0:02:46.9]} 12. f4 {[%clk 0:02:26.5]}
12... c5 {[%clk 0:02:43]} 13. O-O-O {[%clk 0:02:12.7]} 13... Qa5 {[%clk
0:02:37.1]} 14. g4 {[%clk 0:02:09.6]} 14... cxd4 {[%clk 0:02:19.8]} 15. Bxd4
{[%clk 0:02:10.5]} 15... Bb4 {[%clk 0:02:08.8]} 16. g5 {[%clk 0:02:06.4]} 16...
Nxe5 {[%clk 0:02:03.7]} 17. Qxe5 {[%clk 0:01:56.8]} 17... Nh5 {[%clk 0:01:48.5]}
18. Qxa5 {[%clk 0:01:38.8]} 18... Bxa5 {[%clk 0:01:49.4]} 19. Rhf1 {[%clk
0:01:30.4]} 19... Ng3 {[%clk 0:01:47.9]} 20. Rfe1 {[%clk 0:01:23]} 20... Nf5
{[%clk 0:01:47.3]} 21. Bf2 {[%clk 0:01:11.4]} 21... Bxc3 {[%clk 0:01:33.7]} 22.
bxc3 {[%clk 0:01:12.3]} 22... Rfc8 {[%clk 0:01:26.9]} 23. Re4 {[%clk 0:01:02.1]}
23... Rc7 {[%clk 0:01:23.5]} 24. Kb2 {[%clk 0:00:57.6]} 24... Kf8 {[%clk
0:01:18.1]} 25. h4 {[%clk 0:00:56.6]} 25... b6 {[%clk 0:01:13.4]} 26. h5 {[%clk
0:00:55]} 26... Rac8 {[%clk 0:01:12.6]} 27. Kb3 {[%clk 0:00:40.4]} 27... Ke8
{[%clk 0:01:09.4]} 28. g6 {[%clk 0:00:39.2]} 28... hxg6 {[%clk 0:01:08.9]} 29.
hxg6 {[%clk 0:00:40.1]} 29... Ke7 {[%clk 0:01:00.1]} 30. gxf7 {[%clk 0:00:37.7]}
30... Kxf7 {[%clk 0:01:01]} 31. Rde1 {[%clk 0:00:27.9]} 31... Rc6 {[%clk
0:01:00.5]} 32. a4 {[%clk 0:00:20.9]} 32... g6 {[%clk 0:00:36.6]} 33. Bd4 {[%clk
0:00:20.9]} 33... Nxd4+ {[%clk 0:00:31]} 34. cxd4 {[%clk 0:00:09.9]} 34... Rxc4
{[%clk 0:00:29.9]} 35. Rxe6 {[%clk 0:00:09]} 35... Rxd4 {[%clk 0:00:26.6]} 36.
Re7+ {[%clk 0:00:07.7]} 36... Kf6 {[%clk 0:00:26.9]} 37. R1e6+ {[%clk
0:00:06.7]} 37... Kf5 {[%clk 0:00:26.2]} 38. Re1 {[%clk 0:00:02.9]} 38... a5
{[%clk 0:00:19.3]} 39. R7e5+ {[%clk 0:00:02.7]} 39... Kxf4 {[%clk 0:00:18.3]}
40. Re6 {[%clk 0:00:03.6]} 40... Rb4+ {[%clk 0:00:18.3]} 41. Ka3 {[%clk
0:00:03.5]} 41... Rc3+ {[%clk 0:00:17.2]} 42. Ka2 {[%clk 0:00:03.7]} 42... Rg3
{[%clk 0:00:09.1]} 43. Rf1+ {[%clk 0:00:03.4]} 43... Kg5 {[%clk 0:00:08.8]} 44.
Re5+ {[%clk 0:00:02.9]} 44... Kh6 {[%clk 0:00:06.9]} 45. Rh1+ {[%clk 0:00:03.4]}
45... Kg7 {[%clk 0:00:07.1]} 46. Re7+ {[%clk 0:00:03.7]} 46... Kf6 {[%clk
0:00:07.3]} 47. Rb7 {[%clk 0:00:03.2]} 47... Rxa4+ {[%clk 0:00:07.4]} 48. Kb2
{[%clk 0:00:04.1]} 48... Rb4+ {[%clk 0:00:08.3]} 49. Kc2 {[%clk 0:00:04.8]}
49... Rg2+ {[%clk 0:00:08.3]} 50. Kc3 {[%clk 0:00:04.8]} 50... Rg3+ {[%clk
0:00:09.2]} 51. Kc2 {[%clk 0:00:05.4]} 51... Rg2+ {[%clk 0:00:09.5]} 52. Kc3
{[%clk 0:00:05.4]} 52... Rg5 {[%clk 0:00:10.4]} 53. Rhh7 {[%clk 0:00:04.8]}
53... Rc5+ {[%clk 0:00:10.3]} 54. Kd3 {[%clk 0:00:05.4]} 54... Kg5 {[%clk
0:00:10.9]} 55. Rhg7 {[%clk 0:00:04.9]} 55... a4 {[%clk 0:00:10.6]} 56. Ra7
{[%clk 0:00:05.3]} 56... Rb3+ {[%clk 0:00:09.7]} 57. Kd4 {[%clk 0:00:06.2]}
57... a3 {[%clk 0:00:10.1]} 58. Rg8 {[%clk 0:00:04.2]} 58... Ra5 {[%clk
0:00:10.1]} 59. Rag7 {[%clk 0:00:04.4]} 59... a2 {[%clk 0:00:07]} 60. Rxg6+
{[%clk 0:00:05.3]} 60... Kf4 {[%clk 0:00:06.8]} 61. Rg4+ {[%clk 0:00:05.4]}
61... Kf5 {[%clk 0:00:07.1]} 62. R8g5+ {[%clk 0:00:04.5]} 62... Ke6 {[%clk
0:00:07.1]} 63. Rg6+ {[%clk 0:00:03]} 63... Kd7 {[%clk 0:00:07.4]} 64. Rh4
{[%clk 0:00:02.3]} 64... a1=Q+ {[%clk 0:00:05.2]} 65. Kc4 {[%clk 0:00:02.9]}
65... Qa4# {[%clk 0:00:04.1]} 0-1

[Event "Late-Titled-Tuesday-Blitz-February-06-2024"]
[Site "Chess.com"]
[Date "2024.02.06"]
[Round "10"]
[White "kuli4ik"]
[Black "ChristopherYoo"]
[Result "1-0"]
[WhiteElo "2876"]
[BlackElo "2985"]
[TimeControl "180+1"]
[EndTime "15:56:11 PST"]
[Termination "kuli4ik won by resignation"]

1. Nf3 {[%clk 0:03:00.9]} 1... d5 {[%clk 0:02:52.5]} 2. d4 {[%clk 0:03:00.2]}
2... Nf6 {[%clk 0:02:52.3]} 3. Bf4 {[%clk 0:03:00.6]} 3... Bf5 {[%clk
0:02:48.6]} 4. e3 {[%clk 0:03:00.3]} 4... e6 {[%clk 0:02:48.5]} 5. c3 {[%clk
0:03:00.1]} 5... Nbd7 {[%clk 0:02:47]} 6. Qb3 {[%clk 0:02:59.2]} 6... Qc8 {[%clk
0:02:47.2]} 7. c4 {[%clk 0:02:57]} 7... dxc4 {[%clk 0:02:24.4]} 8. Bxc4 {[%clk
0:02:56]} 8... a6 {[%clk 0:02:24.8]} 9. O-O {[%clk 0:02:54.4]} 9... b5 {[%clk
0:02:23.1]} 10. Be2 {[%clk 0:02:54.1]} 10... c5 {[%clk 0:02:22.5]} 11. Rc1
{[%clk 0:02:53.3]} 11... c4 {[%clk 0:02:17.6]} 12. Qd1 {[%clk 0:02:52.6]} 12...
Qb7 {[%clk 0:02:15.5]} 13. b3 {[%clk 0:02:43.5]} 13... cxb3 {[%clk 0:02:14.8]}
14. Qxb3 {[%clk 0:02:38.3]} 14... Rc8 {[%clk 0:02:10.2]} 15. Nbd2 {[%clk
0:02:19.7]} 15... Be7 {[%clk 0:02:09.1]} 16. Rxc8+ {[%clk 0:02:11]} 16... Qxc8
{[%clk 0:02:08.2]} 17. a4 {[%clk 0:02:11.4]} 17... b4 {[%clk 0:02:07.8]} 18. Nc4
{[%clk 0:02:00.2]} 18... Ne4 {[%clk 0:01:56.2]} 19. a5 {[%clk 0:01:56.2]} 19...
O-O {[%clk 0:01:19.8]} 20. Nb6 {[%clk 0:01:44.4]} 20... Qc3 {[%clk 0:01:16.6]}
21. Qxc3 {[%clk 0:01:16.9]} 21... Nxc3 {[%clk 0:01:17.5]} 22. Bxa6 {[%clk
0:00:38.5]} 22... Nxb6 {[%clk 0:01:13.2]} 23. axb6 {[%clk 0:00:39.4]} 23... b3
{[%clk 0:01:13.4]} 24. b7 {[%clk 0:00:37.1]} 24... b2 {[%clk 0:01:13.4]} 25. Rf1
{[%clk 0:00:36.2]} 25... Bb4 {[%clk 0:01:08.6]} 26. Nd2 {[%clk 0:00:26.4]} 26...
Na2 {[%clk 0:00:40.2]} 27. Nc4 {[%clk 0:00:24.4]} 27... Bd3 {[%clk 0:00:32.1]}
28. Nxb2 {[%clk 0:00:20.7]} 28... Bxa6 {[%clk 0:00:31.6]} 29. b8=Q {[%clk
0:00:19.7]} 29... Rxb8 {[%clk 0:00:32.2]} 30. Bxb8 {[%clk 0:00:20]} 30... Bxf1
{[%clk 0:00:32.6]} 31. Kxf1 {[%clk 0:00:20.6]} 31... Nc3 {[%clk 0:00:32.4]} 32.
Nd3 {[%clk 0:00:20.7]} 32... Be7 {[%clk 0:00:33.1]} 33. Bg3 {[%clk 0:00:20.2]}
33... f6 {[%clk 0:00:32.4]} 34. f3 {[%clk 0:00:20.5]} 34... Kf7 {[%clk
0:00:32.1]} 35. Be1 {[%clk 0:00:20.7]} 35... Nd5 {[%clk 0:00:31.7]} 36. e4
{[%clk 0:00:21]} 36... Ne3+ {[%clk 0:00:32.2]} 37. Kf2 {[%clk 0:00:20]} 37...
Nc2 {[%clk 0:00:32.8]} 38. Bc3 {[%clk 0:00:20.2]} 38... Bd8 {[%clk 0:00:33]} 39.
Ke2 {[%clk 0:00:18.2]} 39... Bb6 {[%clk 0:00:33.5]} 40. Nc5 {[%clk 0:00:17.8]}
40... e5 {[%clk 0:00:33.4]} 41. Kd2 {[%clk 0:00:17.1]} 41... exd4 {[%clk
0:00:30.3]} 42. Kxc2 {[%clk 0:00:16.9]} 42... dxc3 {[%clk 0:00:27.9]} 43. Na4
{[%clk 0:00:16]} 43... Bg1 {[%clk 0:00:21.4]} 44. h3 {[%clk 0:00:16.3]} 44... f5
{[%clk 0:00:12.6]} 45. Nxc3 {[%clk 0:00:14.4]} 45... Ke6 {[%clk 0:00:11.4]} 46.
Kd3 {[%clk 0:00:14.2]} 46... g5 {[%clk 0:00:06.6]} 47. Ne2 {[%clk 0:00:13.4]}
47... Bf2 {[%clk 0:00:05.4]} 48. Nd4+ {[%clk 0:00:13]} 48... Ke5 {[%clk
0:00:03.7]} 49. Nxf5 {[%clk 0:00:12.7]} 49... Kf4 {[%clk 0:00:04.4]} 50. Ke2
{[%clk 0:00:12.2]} 50... Bc5 {[%clk 0:00:04.7]} 51. Kf1 {[%clk 0:00:11.4]} 51...
Bb6 {[%clk 0:00:03.2]} 52. Ng7 {[%clk 0:00:11.5]} 52... Be3 {[%clk 0:00:02.1]}
53. Nh5+ {[%clk 0:00:10.6]} 53... Ke5 {[%clk 0:00:02.4]} 54. Ke2 {[%clk
0:00:11.1]} 54... Ba7 {[%clk 0:00:02.7]} 55. g3 {[%clk 0:00:10]} 55... Bb6
{[%clk 0:00:02.5]} 56. Kd3 {[%clk 0:00:10.3]} 56... Bf2 {[%clk 0:00:02.7]} 57.
f4+ {[%clk 0:00:10.6]} 57... gxf4 {[%clk 0:00:03.6]} 58. gxf4+ {[%clk
0:00:10.8]} 58... Ke6 {[%clk 0:00:04.3]} 59. Ke2 {[%clk 0:00:11.2]} 59... Bh4
{[%clk 0:00:04.8]} 60. Kf3 {[%clk 0:00:11.8]} 60... Be1 {[%clk 0:00:05.3]} 61.
Ng7+ {[%clk 0:00:11.8]} 61... Kf7 {[%clk 0:00:04.8]} 62. Nf5 {[%clk 0:00:12.7]}
62... Kf6 {[%clk 0:00:05]} 63. Ne3 {[%clk 0:00:12.9]} 63... Bd2 {[%clk
0:00:05.5]} 64. e5+ {[%clk 0:00:13.4]} 64... Ke6 {[%clk 0:00:05.5]} 65. Ke4
{[%clk 0:00:13.9]} 65... Bc3 {[%clk 0:00:06.1]} 66. f5+ {[%clk 0:00:14.2]} 66...
Kf7 {[%clk 0:00:06.8]} 67. e6+ {[%clk 0:00:14.2]} 67... Ke8 {[%clk 0:00:06.6]}
68. Nd5 {[%clk 0:00:14.5]} 68... Bb2 {[%clk 0:00:07.3]} 69. f6 {[%clk
0:00:14.7]} 69... Ba3 {[%clk 0:00:07.9]} 70. Kf5 {[%clk 0:00:15]} 70... Bd6
{[%clk 0:00:07.9]} 71. h4 {[%clk 0:00:14.1]} 71... h5 {[%clk 0:00:06.7]} 72. Kg5
{[%clk 0:00:13.5]} 72... Be5 {[%clk 0:00:07]} 73. Kxh5 {[%clk 0:00:13.2]} 73...
Bg3 {[%clk 0:00:06.8]} 74. Kg5 {[%clk 0:00:13.1]} 74... Be1 {[%clk 0:00:06.6]}
75. h5 {[%clk 0:00:13.4]} 75... Bd2+ {[%clk 0:00:07.1]} 76. Kg6 {[%clk
0:00:13.8]} 76... Kf8 {[%clk 0:00:07]} 77. e7+ {[%clk 0:00:12.8]} 1-0